bitfinex/quotes_ETHUSD_20240621
["timestamp","ask_amount","ask_price","bid_price","bid_amount"]
[1718973735072,2.28447,3502.0,3501.6,0.55]
[1718973735314,2.28447,3502.0,3501.5,0.55]
[1718973735737,2.2846,3501.7,3501.5,0.55]
[1718973735946,2.28447,3502.0,3501.5,0.55]
[1718973736155,2.28447,3502.0,3501.3,2.83483]
[1718973736156,2.28447,3501.9,3501.3,2.83483]
[1718973736353,2.28447,3502.0,3501.4,3.528765]
[1718973736520,2.28434,3502.1,3501.5,0.55]
[1718973736913,2.28422,3502.3,3501.5,0.55]
[1718973736914,2.28442,3502.0,3501.5,0.55]
[1718973737451,2.28434,3502.1,3501.5,0.55]
[1718973737957,2.28466,3501.6,3501.5,0.55]
[1718973738261,4.66049,3502.5,3501.1,7.32]
[1718973738262,2.28478,3501.5,3501.1,7.32]
[1718973738558,2.2847,3501.6,3501.1,7.32]
[1718973738717,2.2847,3501.6,3501.2,1.172505]
[1718973738936,2.28499,3501.1,3500.6,7.32]
[1718973739134,2.28499,3501.1,3500.5,5.607147]
[1718973739135,2.2848,3501.4,3500.7,2.28525]
[1718973739441,2.2848,3501.4,3500.8,2.28513]
[1718973739669,2.28451,3501.9,3500.9,2.12]
[1718973739836,2.28462,3501.7,3501.0,2.497]
[1718973740376,2.28462,3501.7,3501.1,0.55]
[1718973740536,2.28453,3501.8,3501.1,2.83493]
[1718973740738,2.28453,3501.8,3501.2,2.28493]
[1718973741076,2.28461,3501.7,3501.3,0.55]
[1718973741243,2.28461,3501.7,3501.1,1.0117]
[1718973742010,2.28487,3501.3,3500.9,2.12]
[1718973742151,2.28499,3501.2,3500.7,7.32]
[1718973742484,2.28461,3501.7,3501.0,2.28505]
[1718973742789,2.28461,3501.7,3501.1,2.28499]
[1718973742991,2.28437,3502.1,3501.0,2.28505]
[1718973743148,2.28437,3502.1,3501.3,2.28481]
[1718973743350,2.34076698,3502.0,3501.4,0.55]
[1718973743578,2.28448,3501.9,3501.4,0.55]
[1718973744083,2.28421,3502.3,3501.4,0.55]
[1718973744305,2.28421,3502.3,3501.5,0.283481]
[1718973744453,2.28435,3502.1,3501.6,0.55]
[1718973745474,2.28435,3502.1,3501.6,0.7523071]
[1718973745684,2.28435,3502.1,3501.7,0.55]
[1718973746496,2.28428,3502.2,3501.7,0.55]
[1718973746659,2.2845,3501.9,3501.7,0.55]
[1718973746867,2.28441,3502.0,3501.4,0.55]
[1718973747068,2.28441,3502.0,3501.4,1.1641179]
[1718973747263,2.28466,3501.7,3501.4,1.1641179]
[1718973747755,2.28473,3501.5,3501.2,7.32]
[1718973747950,2.28447,3501.9,3501.2,7.32]
[1718973748157,2.28473,3501.5,3501.2,7.32]
[1718973748797,2.28486,3501.3,3501.2,7.32]
[1718973748956,2.28486,3501.3,3501.2,0.55]
[1718973749159,2.28486,3501.3,3500.6,7.32]
[1718973749160,2.2851,3501.0,3500.6,7.32]
[1718973749373,2.2851,3501.0,3500.6,9.019967]
[1718973750051,2.28512,3500.9,3500.6,9.019967]
[1718973750257,2.28512,3500.9,3500.4,2.85]
[1718973750258,0.05635698,3500.8,3500.4,2.85]
[1718973750486,2.28538,3500.5,3500.4,2.85]
[1718973750688,4.57076,3500.5,3500.4,2.85]
[1718973750987,6.85614,3500.5,3500.4,2.85]
[1718973751488,4.57076,3500.5,3500.4,2.85]
[1718973751682,6.85614,3500.5,3500.4,2.85]
[1718973752354,4.57116,3500.2,3500.1,7.32]
[1718973753695,2.28584,3499.8,3499.5,7.32]
[1718973754030,2.28599,3499.6,3499.2,2.77642813]
[1718973754181,2.28604,3499.5,3499.0,8.464803]
[1718973754381,2.2855,3500.4,3499.1,1.5943023]
[1718973754382,2.28598,3499.6,3499.1,1.5943023]
[1718973754590,2.28598,3499.6,3499.1,3.8805823]
[1718973754760,2.28604,3499.5,3499.1,1.5943023]
[1718973755102,2.28604,3499.5,3499.2,1.98236053]
[1718973755500,2.28579,3499.9,3499.3,0.55]
[1718973755809,2.28584,3499.8,3499.3,2.83614]
[1718973755966,2.28584,3499.8,3499.3,1.86171635]
[1718973756167,2.28556,3500.3,3499.6,2.12]
[1718973756383,2.28556,3500.3,3499.7,2.83589]
[1718973757306,2.28558,3500.2,3499.7,0.55]
[1718973757605,2.28565,3500.1,3499.8,0.495603]
[1718973758117,2.28576,3500.0,3499.9,0.55]
[1718973758616,2.28576,3500.0,3499.6,2.12]
[1718973758617,2.28551,3500.4,3499.7,2.83589]
[1718973758929,2.28558,3500.2,3499.8,0.495589]
[1718973759078,2.28558,3500.2,3499.7,0.55]
[1718973759079,2.28564,3500.1,3499.9,0.55]
[1718973759277,2.28564,3500.1,3499.7,0.55]
[1718973759612,2.28537,3500.6,3499.8,2.28584]
[1718973759826,2.28532,3500.6,3499.9,1.045584]
[1718973759993,2.28532,3500.6,3500.0,0.55]
[1718973760412,2.28546,3500.4,3500.0,0.55]
[1718973760618,2.28532,3500.6,3500.1,0.3331364]
[1718973760812,2.28539,3500.5,3500.2,0.55]
[1718973761139,2.28551,3500.3,3500.2,0.55]
[1718973763532,2.28539,3500.5,3500.2,0.55]
[1718973763533,2.28532,3500.6,3500.2,0.55]
[1718973763745,2.28546,3500.4,3500.2,0.55]
[1718973764041,2.28539,3500.5,3500.2,0.55]
[1718973764242,2.28551,3500.3,3500.2,0.55]
[1718973766528,2.28588,3499.8,3499.5,7.32]
[1718973766865,2.3407,3501.0,3499.6,1.18100179]
[1718973766866,2.28578,3499.9,3499.6,1.18100179]
[1718973767061,2.28578,3499.9,3499.4,2.47226164]
[1718973767935,2.28549,3500.4,3499.5,2.28603]
[1718973768140,2.28539,3500.5,3499.9,2.28573]
[1718973768349,2.28545,3500.4,3500.0,0.55]
[1718973768834,2.28545,3500.4,3499.9,0.55]
[1718973769250,2.28552,3500.3,3499.9,0.55]
[1718973769453,2.28552,3500.3,3500.0,0.495583]
[1718973769761,2.28532,3500.6,3500.1,0.55]
[1718973769949,2.28545,3500.4,3500.1,0.55]
[1718973770828,2.28545,3500.4,3499.9,2.83576]
[1718973771145,2.28563,3500.2,3500.0,0.724159]
[1718973771354,2.28563,3500.2,3499.9,0.55]
[1718973771355,2.28571,3500.0,3499.9,0.55]
[1718973771873,2.28577,3499.9,3499.8,0.55]
[1718973772169,4.57154,3499.9,3499.8,0.55]
[1718973772350,2.28589,3499.8,3499.6,0.55]
[1718973772725,2.28585,3499.8,3499.5,7.32]
[1718973772928,2.28591,3499.7,3499.6,0.37209474]
[1718973773244,2.28584,3499.8,3499.4,0.18617164]
[1718973773245,2.28598,3499.6,3499.4,0.18617164]
[1718973773568,2.28603,3499.6,3499.4,0.18617164]
[1718973773752,2.2861,3499.4,3499.0,8.464803]
[1718973774445,2.3474,3501.8,3499.9,2.4516]
[1718973774771,2.28506,3501.0,3500.3,2.2855]
[1718973775065,2.28506,3501.0,3500.4,0.55]
[1718973775253,2.28461,3501.7,3500.1,7.32]
[1718973775254,2.28519,3500.8,3500.2,2.89267262]
[1718973775768,2.28519,3500.8,3500.2,2.83554]
[1718973776073,2.28519,3500.8,3500.2,4.324824]
[1718973777075,2.34161698,3500.7,3500.2,0.55]
[1718973777363,2.2855,3500.4,3500.2,0.55]
[1718973777565,2.28551,3500.3,3500.2,0.55]
[1718973778028,2.28539,3500.5,3500.2,0.55]
[1718973778029,2.28545,3500.4,3500.2,0.55]
[1718973778699,2.28551,3500.3,3500.2,0.55]
[1718973780034,2.28546,3500.4,3500.2,0.55]
[1718973780809,2.28552,3500.3,3500.0,0.55]
[1718973780958,2.28558,3500.2,3499.9,0.55]
[1718973781157,2.28553,3500.3,3499.9,0.55]
[1718973781377,2.28528,3500.7,3499.9,0.55]
[1718973781378,2.28538,3500.5,3500.0,2.28569]
[1718973781558,2.28531,3500.7,3500.1,2.83563]
[1718973781759,2.2852,3500.8,3500.2,2.28556]
[1718973781958,2.34163698,3500.7,3500.3,0.55]
[1718973782194,4.5709,3500.4,3500.3,0.55]
[1718973782347,2.28545,3500.4,3500.3,0.55]
[1718973783572,4.5709,3500.4,3500.3,0.55]
[1718973783855,2.28573,3500.0,3499.8,2.12]
[1718973784081,2.28591,3499.7,3499.6,7.32]
[1718973786267,2.28579,3499.9,3499.6,0.55]
[1718973786467,2.28579,3499.9,3499.4,2.2861]
[1718973786468,2.28572,3500.0,3499.5,2.83603]
[1718973786780,2.4984,3500.6,3499.5,0.55]
[1718973786977,2.2856,3500.2,3499.6,2.28596]
[1718973787152,2.2856,3500.2,3499.7,1.2742]
[1718973787667,2.28565,3500.1,3499.7,1.2742]
[1718973788267,2.28559,3500.2,3499.7,1.2742]
[1718973789570,2.28557,3500.3,3499.7,1.2742]
[1718973789872,2.28584,3499.8,3499.4,2.12]
[1718973790052,0.05635698,3499.7,3499.4,2.12]
[1718973790755,2.34230698,3499.7,3499.4,2.12]
[1718973791169,2.34230698,3499.7,3499.5,0.55]
[1718973791455,2.28597,3499.6,3499.5,0.55]
[1718973792256,2.28597,3499.6,3499.0,10.584803]
[1718973792454,4.78374,3500.6,3498.7,4.40655]
[1718973792455,0.05635698,3499.5,3498.7,4.40655]
[1718973792695,2.28622,3499.3,3498.8,2.28643]
[1718973792894,2.28624,3499.2,3498.7,5.05124501]
[1718973793207,2.28618,3499.3,3498.8,2.77642813]
[1718973793799,2.28615,3499.4,3498.8,5.06288813]
[1718973793954,2.28615,3499.4,3498.9,0.55]
[1718973794304,2.28622,3499.3,3499.0,1.06641331]
[1718973794594,2.28622,3499.3,3499.1,0.55]
[1718973794800,2.28623,3499.2,3499.1,0.55]
[1718973795470,4.57246,3499.2,3499.1,0.55]
[1718973795856,2.28635,3499.1,3498.9,0.55]
[1718973796594,2.28634,3499.1,3498.9,2.11976731]
[1718973796767,2.28607,3499.5,3498.9,2.11976731]
[1718973796962,2.28631,3499.1,3498.9,2.11976731]
[1718973797914,2.28636,3499.0,3498.9,2.11976731]
[1718973798293,2.28636,3499.0,3498.9,0.55]
[1718973798683,2.28643,3498.9,3498.8,0.55]
[1718973799173,2.28643,3498.9,3498.7,0.55]
[1718973799379,2.28649,3498.8,3498.7,0.55]
[1718973799689,2.28649,3498.8,3498.7,1.102]
[1718973800075,4.57298,3498.8,3498.7,1.102]
[1718973800492,2.28649,3498.8,3498.7,1.102]
[1718973801501,2.28649,3498.8,3498.7,0.55]
[1718973802977,4.57298,3498.8,3498.7,0.55]
[1718973803175,2.28649,3498.8,3498.7,0.55]
[1718973803380,4.57298,3498.8,3498.7,0.55]
[1718973803568,2.28649,3498.8,3498.7,0.55]
[1718973804302,2.28631,3499.1,3498.3,7.32]
[1718973804303,4.5735,3498.4,3498.3,7.32]
[1718973805878,4.5735,3498.4,3498.3,7.87]
[1718973806403,6.86025,3498.4,3498.3,7.87]
[1718973807306,6.86025,3498.4,3498.3,0.55]
[1718973808409,2.28662,3498.7,3498.3,0.55]
[1718973808723,2.28637,3499.0,3498.6,2.12]
[1718973808871,2.28647,3498.9,3498.6,2.12]
[1718973809070,2.28647,3498.9,3498.7,0.55]
[1718973809374,2.4378,3499.6,3498.7,0.8665694]
[1718973809375,2.28649,3498.8,3498.7,0.8665694]
[1718973809612,2.28649,3498.8,3498.7,0.55]
[1718973809780,2.28649,3498.8,3498.5,0.55]
[1718973809975,2.28659,3498.7,3498.5,0.55]
[1718973810512,2.28633,3499.1,3498.5,0.55]
[1718973810709,2.28617,3499.3,3498.6,0.2190719]
[1718973810917,0.05635698,3499.2,3498.7,0.55]
[1718973811121,2.28642,3499.0,3498.7,0.55]
[1718973811614,2.28649,3498.8,3498.7,0.55]
[1718973811816,2.28649,3498.8,3498.7,0.90515159]
[1718973812374,2.28649,3498.8,3498.7,0.55]
[1718973813711,2.28631,3499.1,3498.7,0.55]
[1718973813912,2.28604,3499.5,3499.0,4.40632]
[1718973814119,2.2861,3499.4,3499.1,1.219281]
[1718973814481,2.2861,3499.4,3499.1,0.55]
[1718973815182,2.28623,3499.2,3499.1,0.55]
[1718973815526,4.57246,3499.2,3499.1,0.55]
[1718973818273,2.2862,3499.3,3498.6,2.12]
[1718973818274,2.28656,3498.7,3498.6,2.12]
[1718973818478,2.4212,3499.3,3498.6,2.67]
[1718973818678,2.28635,3499.1,3498.7,0.8665694]
[1718973818991,2.28629,3499.2,3498.7,3.1244694]
[1718973819200,2.28611,3499.4,3498.8,3.26822694]
[1718973819406,2.28616,3499.4,3498.9,0.55]
[1718973819727,2.28605,3499.5,3499.0,0.69426963]
[1718973819728,2.28618,3499.3,3499.0,0.69426963]
[1718973819891,2.28618,3499.3,3499.1,0.55]
[1718973821501,6.91504698,3499.2,3499.1,0.55]
[1718973821703,6.91504698,3499.2,3498.3,3.614025]
[1718973821704,2.28668,3498.6,3498.3,1.145025]
[1718973821905,2.28668,3498.6,3498.1,9.60694]
[1718973822212,2.28669,3498.5,3498.1,3.432023]
[1718973822416,2.28658,3498.7,3498.2,3.3124443]
[1718973822615,2.28664,3498.6,3498.2,1.0255643]
[1718973823008,2.28664,3498.6,3498.3,0.55]
[1718973823196,2.28664,3498.6,3498.4,0.50075773]
[1718973823396,2.28664,3498.6,3498.5,0.55]
[1718973824740,4.57328,3498.6,3498.5,0.55]
[1718973825107,6.85992,3498.6,3498.5,0.55]
[1718973825299,2.28682,3498.3,3498.2,0.55]
[1718973825499,2.28682,3498.3,3498.2,1.1612164]
[1718973826719,2.28677,3498.4,3498.2,1.1612164]
[1718973827796,2.28682,3498.3,3498.2,1.1612164]
[1718973828220,4.57364,3498.3,3498.2,1.1612164]
[1718973828800,2.28674,3498.5,3498.2,1.1612164]
[1718973829137,2.28674,3498.5,3498.3,0.32812164]
[1718973829348,4.57348,3498.5,3498.4,0.55]
[1718973829861,4.57343,3498.5,3498.4,0.55]
[1718973830023,2.28669,3498.5,3498.4,0.55]
[1718973831067,4.57338,3498.5,3498.4,0.55]
[1718973831433,6.86007,3498.5,3498.4,0.55]
[1718973831919,6.86007,3498.5,3498.2,0.611217]
[1718973831920,2.28669,3498.5,3498.3,0.55]
[1718973832125,0.05635698,3498.4,3498.3,0.55]
[1718973832337,4.62985698,3498.4,3498.3,0.55]
[1718973834259,6.91660698,3498.4,3498.3,0.55]
[1718973835071,4.5743,3497.8,3497.7,7.32]
[1718973835252,2.28729,3497.6,3497.3,2.12]
[1718973835563,2.28729,3497.6,3497.4,1.494]
[1718973835762,2.28716,3497.8,3497.4,1.494]
[1718973835928,2.28691,3498.2,3497.4,1.494]
[1718973836124,2.28722,3497.7,3497.5,0.7046889]
[1718973836369,2.28722,3497.7,3497.6,0.55]
[1718973840578,4.57444,3497.7,3497.6,0.55]
[1718973840955,2.28738,3497.5,3497.4,0.55]
[1718973841778,6.86214,3497.5,3497.4,0.55]
[1718973841980,2.28762,3497.1,3496.7,19.6]
[1718973842137,2.28772,3497.0,3496.8,1.145531]
[1718973842749,2.28787,3496.7,3496.4,2.86]
[1718973842954,2.28787,3496.7,3496.5,1.145618]
[1718973843184,2.3996,3497.3,3496.5,1.145618]
[1718973843355,2.288,3496.5,3496.4,2.86]
[1718973844179,4.576,3496.5,3496.4,2.86]
[1718973844485,6.864,3496.5,3496.4,2.86]
[1718973845136,6.86439,3496.3,3496.2,7.32]
[1718973845340,2.28847,3495.8,3495.6,2.12]
[1718973845656,2.28846,3495.8,3495.6,2.12]
[1718973845857,2.28846,3495.8,3495.4,8.465943]
[1718973845858,2.28839,3495.9,3495.4,10.754653]
[1718973846056,2.28839,3495.9,3495.4,5.554653]
[1718973846237,2.28839,3495.9,3495.5,0.7957753]
[1718973846745,2.28846,3495.8,3495.5,0.7957753]
[1718973847084,2.28851,3495.8,3495.5,0.7957753]
[1718973848079,4.57704,3495.7,3495.6,0.55]
[1718973848383,2.28868,3495.5,3495.4,0.55]
[1718973848597,2.28852,3495.7,3495.2,0.55]
[1718973848745,2.2886,3495.6,3495.3,1.227898]
[1718973848943,2.28865,3495.5,3495.4,0.55]
[1718973849448,2.28859,3495.6,3495.2,0.55]
[1718973849647,2.28846,3495.8,3495.2,0.55]
[1718973849983,2.28846,3495.8,3495.3,1.3424969]
[1718973850282,2.28872,3495.5,3495.4,0.55]
[1718973850489,4.60259,3497.0,3495.4,0.55]
[1718973850713,0.05635698,3496.9,3495.5,9.44]
[1718973850860,2.28843,3495.9,3495.5,10.667877]
[1718973851059,2.28827,3496.1,3495.6,0.55]
[1718973851262,2.28787,3496.7,3495.7,2.258]
[1718973851477,3.0,3496.9,3495.8,1.1655877]
[1718973851478,2.28813,3496.3,3495.8,1.1655877]
[1718973851766,2.2882,3496.2,3495.8,0.55]
[1718973853096,2.28833,3496.0,3495.8,0.55]
[1718973853303,2.28851,3495.8,3495.6,0.55]
[1718973853602,2.28813,3496.3,3495.6,1.48761186]
[1718973854105,2.28826,3496.1,3495.6,1.48761186]
[1718973855182,2.28826,3496.1,3495.6,3.77620186]
[1718973855363,2.28826,3496.1,3495.7,1.55049119]
[1718973855700,2.28839,3495.9,3495.8,0.55]
[1718973855862,2.28839,3495.9,3495.6,0.55]
[1718973856885,2.28826,3496.1,3495.6,0.55]
[1718973857176,2.28826,3496.1,3495.7,1.456736]
[1718973857374,2.28826,3496.1,3495.8,0.55]
[1718973857759,2.28839,3495.9,3495.8,0.55]
[1718973857964,2.28852,3495.7,3495.6,0.55]
[1718973858462,2.28859,3495.6,3495.5,9.44]
[1718973858662,2.28859,3495.6,3495.5,7.32]
[1718973859157,4.57718,3495.6,3495.5,7.32]
[1718973859876,2.28859,3495.6,3495.5,7.87]
[1718973862549,4.57716,3495.7,3495.6,0.55]
[1718973863531,2.28858,3495.7,3495.6,0.55]
[1718973863917,4.57716,3495.7,3495.6,0.55]
[1718973865045,2.28817,3496.3,3495.7,2.28851]
[1718973865253,2.28805,3496.5,3495.9,2.28839]
[1718973865456,2.34443698,3496.4,3495.8,2.784291]
[1718973865749,2.28813,3496.3,3496.0,0.55]
[1718973865957,4.57652,3496.1,3496.0,0.55]
[1718973866136,2.28826,3496.2,3496.0,0.55]
[1718973866463,2.28826,3496.1,3496.0,0.55]
[1718973866604,6.92113698,3496.1,3496.0,0.55]
[1718973866809,4.63287698,3496.1,3496.0,0.55]
[1718973867233,6.92113698,3496.1,3496.0,0.55]
[1718973867439,4.63287698,3496.1,3496.0,0.55]
[1718973867645,2.28862,3495.6,3495.4,2.12]
[1718973867849,2.28865,3495.5,3495.4,2.12]
[1718973868146,2.28865,3495.5,3495.4,2.67]
[1718973868747,2.28865,3495.5,3495.4,2.9666907]
[1718973870248,2.28865,3495.5,3495.4,0.55]
[1718973870554,2.28873,3495.4,3495.2,0.55]
[1718973870727,2.28873,3495.4,3495.1,0.55]
[1718973871045,2.28873,3495.4,3495.1,2.4074284]
[1718973871250,2.28873,3495.4,3495.1,0.55]
[1718973873673,2.28865,3495.5,3495.1,0.55]
[1718973875543,2.28879,3495.3,3495.1,0.55]
[1718973876560,2.28872,3495.4,3495.1,0.55]
[1718973876760,2.28882,3495.3,3495.1,0.55]
[1718973878317,2.28885,3495.2,3495.1,0.55]
[1718973879538,2.28879,3495.3,3495.1,0.55]
[1718973879744,2.28874,3495.4,3495.1,0.55]
[1718973879938,2.28874,3495.4,3495.1,1.103]
[1718973880141,2.28849,3495.8,3495.1,1.103]
[1718973880350,0.05635698,3495.7,3495.1,1.103]
[1718973880651,0.05635698,3495.7,3495.2,0.837203]
[1718973880858,2.28859,3495.6,3495.3,0.55]
[1718973881226,2.28822,3496.2,3495.3,0.55]
[1718973881227,2.28872,3495.4,3495.3,0.55]
[1718973881760,2.28872,3495.4,3495.1,0.55]
[1718973883425,2.28879,3495.3,3495.1,0.55]
[1718973883620,2.28866,3495.5,3495.1,0.55]
[1718973884021,2.28873,3495.4,3495.1,0.55]
[1718973884333,2.28873,3495.4,3495.1,1.41606206]
[1718973885220,2.28866,3495.5,3495.1,1.41606206]
[1718973885676,2.28873,3495.4,3495.1,1.41606206]
[1718973885875,2.28885,3495.2,3495.1,3.53606206]
[1718973886064,2.28885,3495.2,3495.1,0.55]
[1718973886263,2.28885,3495.2,3494.9,2.86]
[1718973886264,2.28885,3495.2,3495.0,2.67]
[1718973889470,2.28862,3495.6,3494.6,9.60918]
[1718973889471,2.28911,3494.8,3494.6,7.32]
[1718973889641,2.28918,3494.7,3494.6,7.32]
[1718973889843,2.28918,3494.7,3494.1,4.40957]
[1718973890390,2.28924,3494.6,3494.2,1.146378]
[1718973890545,2.28924,3494.6,3494.2,1.7475038]
[1718973891075,2.28924,3494.6,3494.3,0.55]
[1718973895375,2.28899,3495.0,3494.4,2.28937]
[1718973895573,2.28899,3495.0,3494.5,3.35763238]
[1718973895773,2.28906,3494.9,3494.5,3.35763238]
[1718973896085,2.28923,3494.7,3494.5,3.35763238]
[1718973896292,2.28923,3494.7,3494.5,2.67]
[1718973896785,2.28912,3494.8,3494.5,2.67]
[1718973897345,2.28918,3494.7,3494.5,2.67]
[1718973898792,2.28898,3495.0,3494.5,2.67]
[1718973898966,2.28898,3495.0,3494.6,0.495943]
[1718973899171,2.28898,3495.0,3494.7,0.55]
[1718973899680,2.28912,3494.8,3494.7,0.55]
[1718973899855,4.57824,3494.8,3494.7,0.55]
[1718973900056,2.28912,3494.8,3494.6,0.55]
[1718973900287,4.69449,3495.6,3494.1,3.266383]
[1718973900288,0.05635698,3494.7,3494.1,3.266383]
[1718973900457,2.28889,3495.2,3494.1,2.12]
[1718973900458,2.28942,3494.4,3494.1,2.12]
[1718973901192,2.28937,3494.4,3494.1,2.12]
[1718973901395,2.28944,3494.3,3494.1,2.12]
[1718973901718,2.28949,3494.3,3494.1,2.12]
[1718973901995,2.2895,3494.2,3494.0,7.32]
[1718973903000,6.92506698,3494.1,3494.0,7.32]
[1718973903202,4.63549698,3494.1,3494.0,7.32]
[1718973903586,2.28941,3494.4,3494.0,7.32]
[1718973903912,2.28952,3494.2,3494.0,7.32]
[1718973904436,4.66063,3494.8,3494.0,8.338]
[1718973904701,2.28938,3494.4,3494.0,10.458]
[1718973905005,2.28933,3494.5,3494.1,0.55]
[1718973905686,2.28939,3494.4,3494.1,0.55]
[1718973906591,2.28932,3494.5,3494.1,1.147769]
[1718973906789,2.28888,3495.2,3494.6,2.28924]
[1718973907005,2.2889,3495.2,3494.7,0.55]
[1718973907187,2.28892,3495.1,3494.7,0.55]
[1718973907375,2.28903,3495.0,3494.5,0.55]
[1718973907575,2.2889,3495.2,3494.5,1.274881]
[1718973907882,2.28906,3494.9,3494.5,0.55]
[1718973908089,2.289,3495.0,3494.5,0.55]
[1718973908293,2.289,3495.0,3494.5,2.8393]
[1718973908483,2.28885,3495.2,3494.6,2.28923]
[1718973908683,2.28885,3495.2,3494.7,1.274853]
[1718973908922,2.28892,3495.1,3494.7,1.274853]
[1718973910310,2.402,3495.7,3494.7,1.274853]
[1718973910580,2.28887,3495.2,3494.7,3.564003]
[1718973910809,2.28887,3495.2,3494.7,1.274853]
[1718973911050,2.28911,3494.8,3494.7,0.55]
[1718973911211,2.28911,3494.8,3494.5,0.55]
[1718973911417,2.28879,3495.3,3494.6,2.28924]
[1718973911736,2.28879,3495.3,3494.7,0.55]
[1718973912054,2.402,3495.7,3494.7,1.100924]
[1718973912223,2.2787,3496.1,3495.2,2.2888]
[1718973912423,2.28865,3495.6,3495.3,0.55]
[1718973912638,2.28867,3495.5,3495.3,0.55]
[1718973912817,2.28867,3495.5,3495.1,0.55]
[1718973913907,2.28846,3495.8,3495.1,2.83885]
[1718973914115,2.34481698,3495.8,3495.1,2.83885]
[1718973914313,2.34490698,3495.7,3495.1,2.83885]
[1718973914724,2.34490698,3495.7,3495.1,0.55]
[1718973914725,2.2887,3495.5,3495.1,0.55]
[1718973914924,2.4218,3495.3,3494.8,0.55]
[1718973915141,0.05635698,3495.2,3494.7,0.55]
[1718973915340,0.05635698,3495.2,3494.5,7.32]
[1718973915513,2.28923,3494.7,3494.5,7.32]
[1718973915718,2.28923,3494.7,3494.3,2.12]
[1718973916360,2.5366957,3495.2,3494.3,2.12]
[1718973916513,2.28906,3494.9,3494.3,2.12]
[1718973916719,2.34547698,3494.8,3494.3,2.12]
[1718973917018,0.05635698,3494.7,3494.4,0.55]
[1718973918827,0.05635698,3494.8,3494.4,0.55]
[1718973919537,2.28931,3494.5,3494.4,0.55]
[1718973921537,2.2893,3494.6,3493.9,9.44]
[1718973921538,2.28941,3494.4,3493.9,9.44]
[1718973921869,4.6199,3494.6,3493.9,9.44]
[1718973921870,2.28952,3494.2,3493.9,9.44]
[1718973922353,2.28957,3494.1,3493.9,9.44]
[1718973922557,2.28963,3494.0,3493.9,9.44]
[1718973922860,2.28958,3494.1,3493.9,2.12]
[1718973923058,2.28958,3494.1,3494.0,0.55]
[1718973923473,2.28958,3494.1,3493.8,0.55]
[1718973923971,2.28951,3494.2,3493.8,0.55]
[1718973924162,2.28964,3494.0,3493.8,0.55]
[1718973924540,2.28958,3494.1,3493.8,0.55]
[1718973925152,0.05635698,3494.0,3493.8,0.55]
[1718973925661,2.34599698,3494.0,3493.8,0.55]
[1718973925886,2.28964,3494.0,3493.8,0.55]
[1718973926895,2.34605698,3493.9,3493.8,0.55]
[1718973927100,6.92545698,3493.9,3493.8,0.55]
[1718973927457,6.92545698,3493.9,3493.3,7.32]
[1718973927458,2.29001,3493.5,3493.3,7.32]
[1718973927663,2.29002,3493.5,3493.3,7.32]
[1718973927892,2.28977,3493.8,3493.3,7.32]
[1718973928070,2.28995,3493.6,3493.3,7.32]
[1718973928467,2.29002,3493.5,3493.3,7.32]
[1718973928685,2.34637698,3493.5,3493.3,7.32]
[1718973928881,0.05635698,3493.5,3493.4,0.55]
[1718973929107,2.28996,3493.5,3493.4,0.55]
[1718973929611,2.28955,3494.2,3493.4,0.55]
[1718973929612,2.28991,3493.6,3493.4,0.55]
[1718973929813,2.28996,3493.5,3493.4,0.55]
[1718973930212,4.57992,3493.5,3493.4,0.55]
[1718973930914,6.86988,3493.5,3493.4,0.55]
[1718973931274,6.86988,3493.5,3492.9,12.28]
[1718973931275,2.29016,3493.2,3492.6,8.466877]
[1718973931581,2.29016,3493.2,3492.2,12.28]
[1718973931582,2.2903,3493.0,3492.5,2.12]
[1718973931889,5.28972,3493.9,3492.5,4.4106]
[1718973931890,2.29028,3493.1,3492.5,4.4106]
[1718973932212,2.29036,3492.9,3492.5,2.12]
[1718973932412,2.28989,3493.7,3492.5,2.12]
[1718973932413,2.29044,3492.8,3492.5,2.12]
[1718973932774,2.29036,3492.9,3492.5,2.12]
[1718973932775,2.29055,3492.6,3492.5,2.12]
[1718973932970,4.5811,3492.6,3492.5,2.12]
[1718973933306,2.29075,3492.3,3492.2,20.747002]
[1718973933473,2.29075,3492.3,3492.2,1.147002]
[1718973933872,2.29069,3492.4,3492.2,1.147002]
[1718973934074,2.29075,3492.3,3492.2,1.147002]
[1718973934523,2.29075,3492.3,3492.2,0.55]
[1718973934715,2.29069,3492.4,3492.2,1.103]
[1718973934904,2.29069,3492.4,3492.3,0.55]
[1718973936045,4.58138,3492.4,3492.3,0.55]
[1718973936525,2.29065,3492.5,3492.2,0.55]
[1718973936725,4.5815,3492.3,3492.2,0.55]
[1718973936927,2.29091,3492.1,3492.0,0.55]
[1718973937333,2.3076,3493.1,3491.9,4.98]
[1718973937334,2.29095,3492.0,3491.9,4.98]
[1718973937543,2.29075,3492.3,3491.9,6.5618075]
[1718973937827,2.29055,3492.7,3491.9,6.5618075]